bitfinex/quotes_BTCUSD_20241025
["timestamp","ask_amount","ask_price","bid_price","bid_amount"]
[1729845399514,0.091524,67661.0,67660.0,0.147959]
[1729845399709,0.091524,67661.0,67660.0,0.31047749]
[1729845400314,0.091524,67661.0,67660.0,0.31547749]
[1729845400520,0.000824,67661.0,67660.0,0.41962522]
[1729845400941,0.000824,67661.0,67660.0,0.41500419]
[1729845401148,0.000824,67661.0,67660.0,0.41223059]
[1729845401343,0.000824,67661.0,67660.0,0.41962267]
[1729845402773,0.000824,67661.0,67660.0,0.52462267]
[1729845403033,0.000824,67661.0,67660.0,0.6387704]
[1729845403297,0.000824,67661.0,67660.0,0.53462267]
[1729845403465,0.000824,67661.0,67660.0,0.55487518]
[1729845403658,0.000824,67661.0,67660.0,0.65902291]
[1729845403861,0.000824,67661.0,67660.0,0.66102291]
[1729845404209,0.000824,67661.0,67660.0,0.65902291]
[1729845404624,0.000824,67661.0,67660.0,0.64701078]
[1729845404837,0.000824,67661.0,67660.0,0.65902159]
[1729845405255,0.000824,67661.0,67660.0,0.75452159]
[1729845405463,0.000823,67668.0,67667.0,0.35709173]
[1729845405666,0.000823,67668.0,67667.0,2.42349435]
[1729845405863,0.000823,67668.0,67667.0,2.38711935]
[1729845406335,0.000823,67668.0,67667.0,2.45089496]
[1729845406555,0.000823,67668.0,67667.0,2.57279496]
[1729845406760,9e-05,67672.0,67671.0,0.44185834]
[1729845406982,9e-05,67672.0,67671.0,0.45544962]
[1729845407203,9e-05,67672.0,67671.0,3.58657262]
[1729845407418,9e-05,67672.0,67671.0,3.74414696]
[1729845407833,9e-05,67672.0,67671.0,3.72182796]
[1729845408046,9e-05,67672.0,67671.0,3.68957615]
[1729845408249,9e-05,67672.0,67671.0,2.80374781]
[1729845408910,9e-05,67672.0,67671.0,2.48738581]
[1729845409115,9e-05,67672.0,67671.0,1.26759281]
[1729845409326,9e-05,67672.0,67671.0,1.24659281]
[1729845410810,9e-05,67672.0,67671.0,0.58136981]
[1729845411015,9e-05,67672.0,67671.0,2.98432081]
[1729845411223,9e-05,67672.0,67671.0,0.58336981]
[1729845411431,9e-05,67672.0,67671.0,2.39028481]
[1729845411650,9e-05,67672.0,67671.0,2.40908981]
[1729845411855,9e-05,67672.0,67671.0,2.76351351]
[1729845412059,9e-05,67672.0,67671.0,2.61059017]
[1729845412469,9e-05,67672.0,67671.0,2.61259017]
[1729845412674,9e-05,67672.0,67671.0,2.61059017]
[1729845414204,9e-05,67672.0,67671.0,1.92348217]
[1729845414424,9e-05,67672.0,67671.0,1.90652817]
[1729845414645,9e-05,67672.0,67671.0,1.79505317]
[1729845414819,9e-05,67672.0,67671.0,1.21389417]
[1729845414820,0.000914,67672.0,67671.0,1.21389417]
[1729845415601,0.0831,67682.0,67673.0,0.267931]
[1729845415602,0.95472879,67674.0,67673.0,0.267931]
[1729845415828,0.96368238,67674.0,67673.0,0.60304283]
[1729845416032,0.96368238,67674.0,67673.0,2.39671083]
[1729845416234,0.96368238,67674.0,67673.0,2.89558983]
[1729845416451,0.96368238,67674.0,67673.0,2.60460983]
[1729845417079,0.96368238,67674.0,67673.0,2.59396983]
[1729845417286,0.96368238,67674.0,67673.0,2.51977283]
[1729845417492,0.96368238,67674.0,67673.0,1.54828783]
[1729845417927,0.96368238,67674.0,67673.0,0.90261583]
[1729845418125,0.96368238,67674.0,67673.0,0.81629583]
[1729845418350,0.96368238,67674.0,67673.0,0.68040283]
[1729845418553,0.96368238,67674.0,67673.0,0.67540283]
[1729845418752,0.96368238,67674.0,67673.0,0.4204439]
[1729845420233,0.96072678,67674.0,67673.0,0.4204439]
[1729845420432,0.96076678,67674.0,67673.0,0.4204439]
[1729845422220,0.96076678,67674.0,67673.0,0.40843481]
[1729845422419,0.96076678,67674.0,67673.0,0.42044357]
[1729845423779,0.96076678,67674.0,67673.0,0.43044357]
[1729845424130,0.95181319,67674.0,67673.0,0.43044357]
[1729845424335,0.96095974,67674.0,67673.0,0.43044357]
[1729845425610,0.88152004,67674.0,67673.0,0.41843481]
[1729845425811,0.88152004,67674.0,67673.0,0.43044301]
[1729845426959,0.88234304,67674.0,67673.0,0.43044301]
[1729845427779,0.88234304,67674.0,67673.0,0.41544301]
[1729845428013,0.88234304,67674.0,67673.0,0.26767401]
[1729845428225,0.88234304,67674.0,67673.0,0.16767401]
[1729845428770,0.88234304,67674.0,67673.0,0.31544301]
[1729845429171,0.88234304,67674.0,67673.0,0.16767401]
[1729845429776,0.88234304,67674.0,67673.0,0.26767401]
[1729845430177,0.88234304,67674.0,67673.0,0.41544301]
[1729845430380,0.88234304,67674.0,67673.0,0.26767401]
[1729845430603,0.88234304,67674.0,67673.0,0.16767401]
[1729845430909,1.05464304,67674.0,67673.0,0.0121702]
[1729845431522,1.05464304,67674.0,67673.0,0.1599392]
[1729845431722,1.05464304,67674.0,67673.0,0.0121702]
[1729845432155,1.05464304,67674.0,67673.0,0.000162]
[1729845432582,1.05464304,67674.0,67673.0,0.147931]
[1729845432789,1.05464304,67674.0,67673.0,0.15255048]
[1729845432992,1.05464304,67674.0,67673.0,0.15994166]
[1729845433202,1.05464304,67674.0,67673.0,0.30343481]
[1729845433425,0.96184304,67674.0,67673.0,0.30343481]
[1729845433642,0.95269649,67674.0,67673.0,0.30343481]
[1729845433844,0.96181585,67674.0,67673.0,0.30343481]
[1729845434282,0.88231585,67674.0,67673.0,0.30343481]
[1729845434478,0.88231585,67674.0,67673.0,0.31544468]
[1729845435756,0.83612405,67674.0,67673.0,0.31544468]
[1729845438174,0.91842405,67674.0,67673.0,0.31544468]
[1729845438381,1.00992405,67674.0,67673.0,0.16494087]
[1729845439428,1.00992405,67674.0,67673.0,0.16658687]
[1729845440235,0.91842405,67674.0,67673.0,0.31709068]
[1729845440459,0.83612405,67674.0,67673.0,0.31709068]
[1729845442220,0.83316871,67674.0,67673.0,0.31709068]
[1729845443382,0.83316871,67674.0,67673.0,0.41709068]
[1729845444632,0.83316871,67674.0,67673.0,3.86545925]
[1729845444878,0.83316871,67674.0,67673.0,4.10701537]
[1729845445107,0.82404935,67674.0,67673.0,4.20311584]
[1729845445320,0.82404935,67674.0,67673.0,4.0521925]
[1729845445536,0.82404935,67674.0,67673.0,0.45392025]
[1729845445743,0.83309562,67674.0,67673.0,0.45392226]
[1729845445951,0.83309562,67674.0,67673.0,0.4613123]
[1729845446162,0.82404935,67674.0,67673.0,0.46593108]
[1729845446372,0.82404935,67674.0,67673.0,0.46593373]
[1729845446587,0.8331125,67674.0,67673.0,1.01934563]
[1729845446797,0.82404935,67674.0,67673.0,2.88447577]
[1729845447004,0.8331125,67674.0,67673.0,2.74163777]
[1729845447209,0.8331125,67674.0,67673.0,2.74363777]
[1729845447415,0.8331125,67674.0,67673.0,2.74163777]
[1729845447645,0.8331125,67674.0,67673.0,2.56509077]
[1729845447836,0.8331125,67674.0,67673.0,2.57709872]
[1729845448042,0.8331125,67674.0,67673.0,2.41374572]
[1729845448255,0.8331125,67674.0,67673.0,1.91300445]
[1729845448668,0.82404935,67674.0,67673.0,1.54218545]
[1729845448878,0.82426703,67674.0,67673.0,0.67160634]
[1729845449084,0.8331125,67674.0,67673.0,0.58391945]
[1729845449288,0.8331125,67674.0,67673.0,0.64969125]
[1729845449912,0.8331125,67674.0,67673.0,0.64969196]
[1729845450735,0.8331125,67674.0,67673.0,0.64978978]
[1729845450944,0.8331125,67674.0,67673.0,0.58399827]
[1729845451548,0.82404935,67674.0,67673.0,0.58399827]
[1729845451756,0.83311624,67674.0,67673.0,0.58399827]
[1729845452135,0.83311624,67674.0,67673.0,0.57899827]
[1729845452334,0.83311624,67674.0,67673.0,0.42208947]
[1729845452554,0.83311624,67674.0,67673.0,0.20545781]
[1729845452555,0.98403958,67674.0,67673.0,0.20545781]
[1729845452738,0.98403958,67674.0,67673.0,0.16158566]
[1729845452954,1.06533958,67674.0,67673.0,0.16158566]
[1729845453145,1.15883958,67674.0,67673.0,0.16142366]
[1729845453775,1.15883958,67674.0,67673.0,0.15403371]
[1729845453976,0.91441624,67674.0,67673.0,0.15403371]
[1729845455885,0.83311624,67674.0,67673.0,0.46801441]
[1729845456110,0.83311624,67674.0,67673.0,0.41709107]
[1729845456548,0.82404935,67674.0,67673.0,0.46096322]
[1729845456757,0.82404935,67674.0,67673.0,0.41709107]
[1729845456958,0.82404935,67674.0,67673.0,0.46095082]
[1729845456959,0.83305663,67674.0,67673.0,0.46095082]
[1729845457182,0.83305663,67674.0,67673.0,0.46094944]
[1729845457405,0.83305663,67674.0,67673.0,0.46095465]
[1729845457648,0.83305663,67674.0,67673.0,0.41708969]
[1729845457885,0.82404935,67674.0,67673.0,0.43208969]
[1729845458137,0.82404935,67674.0,67673.0,1.28225292]
[1729845458373,0.83305663,67674.0,67673.0,1.36797493]
[1729845458603,0.83305663,67674.0,67673.0,1.11211693]
[1729845458856,0.83305663,67674.0,67673.0,0.96436193]
[1729845459546,0.83305663,67674.0,67673.0,0.96436987]
[1729845459767,0.83305663,67674.0,67673.0,0.96636987]
[1729845460038,0.83305663,67674.0,67673.0,0.96436987]
[1729845460480,0.83305663,67674.0,67673.0,0.98830045]
[1729845460715,0.83305663,67674.0,67673.0,0.87864693]
[1729845461159,0.83305663,67674.0,67673.0,0.87664693]
[1729845462807,0.83305663,67674.0,67673.0,0.87864693]
[1729845463047,0.83305663,67674.0,67673.0,0.87664693]
[1729845464007,0.83305663,67674.0,67673.0,1.05160725]
[1729845466164,0.83305663,67674.0,67673.0,0.94045125]
[1729845466398,0.83305663,67674.0,67673.0,2.29092925]
[1729845466627,0.82404935,67674.0,67673.0,2.56260576]
[1729845466877,0.82404935,67674.0,67673.0,2.40059676]
[1729845467097,0.82404935,67674.0,67673.0,2.38920876]
[1729845467328,0.83309688,67674.0,67673.0,2.27954125]
[1729845467546,0.82404935,67674.0,67673.0,2.27954125]
[1729845467767,0.83309691,67674.0,67673.0,2.38921236]
[1729845468037,0.83309691,67674.0,67673.0,2.37720412]
[1729845468275,0.83309691,67674.0,67673.0,2.01888631]
[1729845468515,0.83309691,67674.0,67673.0,1.64873731]
[1729845468744,0.83309691,67674.0,67673.0,1.64881875]
[1729845469190,0.83309691,67674.0,67673.0,1.47381875]
[1729845469443,0.83309691,67674.0,67673.0,1.07142699]
[1729845469933,0.82404935,67674.0,67673.0,0.98367765]
[1729845470166,0.83309679,67674.0,67673.0,1.07143437]
[1729845470678,0.83309679,67674.0,67673.0,1.09335475]
[1729845470915,0.83309679,67674.0,67673.0,0.99464822]
[1729845471616,0.83309679,67674.0,67673.0,0.99464837]
[1729845473284,0.83309679,67674.0,67673.0,0.9946904]
[1729845473736,0.83309679,67674.0,67673.0,0.98371983]
[1729845474404,0.83309679,67674.0,67673.0,1.0934254]
[1729845474831,0.83309679,67674.0,67673.0,0.99469227]
[1729845475255,0.83309679,67674.0,67673.0,0.99469203]
[1729845477594,0.83309679,67674.0,67673.0,0.98969203]
[1729845477791,0.83309679,67674.0,67673.0,0.99469203]
[1729845478845,0.83309679,67674.0,67673.0,0.98969203]
[1729845479060,0.83309679,67674.0,67673.0,0.73038223]
[1729845479287,0.82404935,67674.0,67673.0,0.76654103]
[1729845479489,0.82404935,67674.0,67673.0,0.85436863]
[1729845479696,0.83311647,67674.0,67673.0,0.85436863]
[1729845481000,0.83311647,67674.0,67673.0,0.6045539]
[1729845481220,0.83311647,67674.0,67673.0,0.85446313]
[1729845482480,0.83311647,67674.0,67673.0,0.85446684]
[1729845482889,0.83311647,67674.0,67673.0,0.84349126]
[1729845483499,0.82404935,67674.0,67673.0,0.84202347]
[1729845483710,0.83310715,67674.0,67673.0,0.84202347]
[1729845483857,0.83310715,67674.0,67673.0,0.8412913]
[1729845484069,0.91020715,67674.0,67673.0,0.68536796]
[1729845484279,0.91020715,67674.0,67673.0,0.43545873]
[1729845485021,0.91020715,67674.0,67673.0,0.41488952]
[1729845487691,0.91020715,67674.0,67673.0,0.25938571]
[1729845488294,0.91020715,67674.0,67673.0,0.15938571]
[1729845489630,0.91020715,67674.0,67673.0,0.15938785]
[1729845490642,0.91020715,67674.0,67673.0,0.31031119]
[1729845493214,0.91020715,67674.0,67673.0,0.31031114]
[1729845494980,0.91020715,67674.0,67673.0,0.30291991]
[1729845495186,0.91020715,67674.0,67673.0,0.31031116]
[1729845496649,0.91020715,67674.0,67673.0,0.15938782]
[1729845497290,0.91020715,67674.0,67673.0,0.15199658]
[1729845497503,0.91020715,67674.0,67673.0,0.15938785]
[1729845498379,0.91020715,67674.0,67673.0,0.15199658]
[1729845507348,0.91020715,67674.0,67673.0,0.15938785]
[1729845507970,0.91020715,67674.0,67673.0,0.14737704]
[1729845508221,0.91020715,67674.0,67673.0,0.15938779]
[1729845513998,0.91020715,67674.0,67673.0,0.15922579]
[1729845514229,1.15473049,67674.0,67673.0,0.00626552]
[1729845514433,1.30249749,67674.0,67673.0,0.001646]
[1729845515912,1.32533062,67674.0,67673.0,0.001646]
[1729845516112,1.30249749,67674.0,67673.0,0.001646]
[1729845519027,1.4858393,67674.0,67673.0,0.001646]
[1729845520559,1.33491596,67674.0,67673.0,0.001646]
[1729845520762,1.16141215,67674.0,67673.0,0.001646]
[1729845522322,1.16141215,67674.0,67673.0,3.501646]
[1729845523231,1.31233549,67674.0,67673.0,3.501646]
[1729845524396,1.31233549,67674.0,67673.0,0.001646]
[1729845525493,1.15473049,67674.0,67673.0,0.001646]
[1729845525730,1.16456849,67674.0,67673.0,0.001646]
[1729845526728,1.16456849,67674.0,67673.0,3.501646]
[1729845527435,1.15551069,67674.0,67673.0,3.501646]
[1729845529240,1.30327769,67674.0,67673.0,3.501646]
[1729845529463,1.15551069,67674.0,67673.0,3.501646]
[1729845529713,1.30327769,67674.0,67673.0,3.501646]
[1729845530137,1.15551069,67674.0,67673.0,3.501646]
[1729845530378,1.10867989,67674.0,67673.0,3.501646]
[1729845532585,0.82404935,67674.0,67673.0,3.649415]
[1729845536199,0.97181635,67674.0,67673.0,3.501646]
[1729845536464,1.12283389,67674.0,67673.0,3.501646]
[1729845536671,1.29123389,67674.0,67673.0,3.501646]
[1729845537850,1.14021635,67674.0,67673.0,3.501646]
[1729845538503,1.29123389,67674.0,67673.0,3.501646]
[1729845538921,1.30107189,67674.0,67673.0,3.501646]
[1729845541787,1.15005435,67674.0,67673.0,3.501646]
[1729845542004,1.00228735,67674.0,67673.0,3.501646]
[1729845542439,0.90918735,67674.0,67673.0,3.501646]
[1729845545313,1.05695435,67674.0,67673.0,3.501646]
[1729845547306,1.05695435,67674.0,67673.0,2.001646]
[1729845550402,1.4536757,67674.0,67673.0,2.001646]
[1729845550650,1.52283517,67674.0,67673.0,2.001646]
[1729845550892,1.67476248,67674.0,67673.0,2.001646]
[1729845551339,1.78537156,67674.0,67673.0,2.001646]
[1729845551593,1.67676248,67674.0,67673.0,2.001646]
[1729845553224,1.67697403,67674.0,67673.0,2.001646]
[1729845553682,1.67897403,67674.0,67673.0,2.001646]
[1729845553899,1.69966189,67674.0,67673.0,2.001646]
[1729845555288,1.69971947,67674.0,67673.0,2.001646]
[1729845556402,1.65280511,67674.0,67673.0,2.001646]
[1729845557319,1.74129138,67674.0,67673.0,2.001646]
[1729845557534,1.69313191,67674.0,67673.0,2.001646]
[1729845558424,1.60464564,67674.0,67673.0,2.001646]
[1729845558636,1.6931584,67674.0,67673.0,2.001646]
[1729845559492,1.71525984,67674.0,67673.0,2.001646]
[1729845559703,1.71725984,67674.0,67673.0,2.001646]
[1729845559908,1.71703626,67674.0,67673.0,2.001646]
[1729845562200,1.60637269,67674.0,67673.0,2.001646]
[1729845562446,1.71703626,67674.0,67673.0,2.001646]
[1729845562681,1.64489875,67674.0,67673.0,2.001646]
[1729845563158,1.55637269,67674.0,67673.0,2.001646]
[1729845563398,1.57020116,67674.0,67673.0,2.001646]
[1729845565081,1.6567213,67674.0,67673.0,2.001646]
[1729845567883,1.55261812,67674.0,67673.0,2.001646]
[1729845568125,1.46409798,67674.0,67673.0,2.001646]
[1729845568610,1.57476155,67674.0,67673.0,2.001646]
[1729845568835,1.51019416,67674.0,67673.0,2.001646]
[1729845569316,2.50958036,67674.0,67673.0,2.001646]
[1729845569558,2.62022252,67674.0,67673.0,2.001646]
[1729845569792,2.57412634,67674.0,67673.0,2.001646]
[1729845570948,2.62023387,67674.0,67673.0,2.001646]
[1729845571194,2.57412634,67674.0,67673.0,2.001646]
[1729845571418,2.62023548,67674.0,67673.0,2.001646]
[1729845571870,2.57412634,67674.0,67673.0,2.001646]
[1729845572784,2.50959322,67674.0,67673.0,2.001646]
[1729845573000,2.51159322,67674.0,67673.0,2.001646]
[1729845573688,2.59300854,67674.0,67673.0,2.001646]
[1729845573924,2.63739127,67674.0,67673.0,2.001646]
[1729845574139,2.5488995,67674.0,67673.0,2.001646]
[1729845574574,2.59660028,67674.0,67673.0,2.001646]
[1729845575024,2.4904971,67674.0,67673.0,2.001646]
[1729845575248,2.37987811,67674.0,67673.0,2.001646]
[1729845575680,2.49049407,67674.0,67673.0,2.001646]
[1729845575889,2.38187811,67674.0,67673.0,2.001646]
[1729845576102,2.37987811,67674.0,67673.0,2.001646]
[1729845577391,2.38187811,67674.0,67673.0,2.001646]
[1729845578093,2.37987811,67674.0,67673.0,2.001646]
[1729845578513,2.46837171,67674.0,67673.0,2.001646]
[1729845578724,2.37987811,67674.0,67673.0,2.001646]
[1729845580457,2.49049407,67674.0,67673.0,2.001646]
[1729845581580,2.49249407,67674.0,67673.0,2.001646]
[1729845582438,2.38187811,67674.0,67673.0,2.001646]
[1729845583502,2.37987811,67674.0,67673.0,2.001646]
[1729845584141,2.37964864,67674.0,67673.0,2.001646]
[1729845587963,2.37986176,67674.0,67673.0,2.001646]
[1729845591124,2.34374861,67674.0,67673.0,2.001646]
[1729845592636,2.34251008,67674.0,67673.0,2.001646]
[1729845597277,2.34260696,67674.0,67673.0,2.001646]
[1729845598744,2.26730696,67674.0,67673.0,2.001646]
[1729845599155,2.26724182,67674.0,67673.0,2.001646]
[1729845600630,2.371345,67674.0,67673.0,2.001646]
[1729845600840,2.37140457,67674.0,67673.0,2.001646]
[1729845601052,2.50442581,67674.0,67673.0,2.001646]
[1729845601261,2.71470191,67674.0,67673.0,2.001646]
[1729845601474,2.50442778,67674.0,67673.0,2.001646]
[1729845604346,2.4003246,67674.0,67673.0,2.001646]
[1729845604573,2.50442778,67674.0,67673.0,2.001646]
[1729845604815,2.37140457,67674.0,67673.0,2.001646]
[1729845605534,2.26730139,67674.0,67673.0,2.001646]
[1729845605725,2.26730139,67674.0,67673.0,2.097746]
[1729845605726,2.0470452,67674.0,67673.0,2.097746]
[1729845605977,1.75149905,67674.0,67673.0,2.097746]
[1729845606197,1.75149905,67674.0,67673.0,2.176846]
[1729845606663,1.73764159,67674.0,67673.0,2.176846]
[1729845607098,1.88540859,67674.0,67673.0,2.176846]
[1729845607317,1.95191723,67674.0,67673.0,2.097746]
[1729845607548,1.95191723,67674.0,67673.0,2.001646]
[1729845607815,1.88540859,67674.0,67673.0,2.001646]
[1729845608497,1.95187365,67674.0,67673.0,2.001646]
[1729845609608,1.95186873,67674.0,67673.0,2.001646]
[1729845610133,2.32912796,67674.0,67673.0,2.001646]
[1729845610392,2.45437998,67674.0,67673.0,2.001646]
[1729845610611,2.34361307,67674.0,67673.0,2.001646]
[1729845610827,2.35945783,67674.0,67673.0,2.001646]
[1729845612252,2.45946331,67674.0,67673.0,1.94196759]
[1729845612506,2.74288741,67674.0,67673.0,1.94196759]
[1729845612686,2.81894258,67674.0,67673.0,1.94196759]
[1729845613218,2.83946873,67674.0,67673.0,1.94196759]
[1729845613430,2.85398541,67674.0,67673.0,1.94196759]
[1729845614081,2.85598541,67674.0,67673.0,1.94196759]
[1729845614984,2.63717545,67674.0,67673.0,1.94196759]
[1729845615878,2.48088262,67674.0,67673.0,1.94196759]
[1729845619836,2.47888262,67674.0,67673.0,1.94196759]
[1729845620391,2.52552512,67674.0,67673.0,1.50727009]
[1729845620612,2.55780385,67674.0,67673.0,1.50727009]
[1729845620839,2.5716377,67674.0,67673.0,1.50727009]
[1729845621079,2.5716377,67674.0,67673.0,1.47771609]
[1729845621757,2.5716377,67674.0,67673.0,1.47936409]
[1729845623108,2.5696377,67674.0,67673.0,1.47936409]
[1729845623332,2.52523707,67674.0,67673.0,1.47936409]
[1729845624914,2.42113389,67674.0,67673.0,1.47936409]
[1729845625145,2.41913389,67674.0,67673.0,1.47936409]
[1729845626300,2.41911739,67674.0,67673.0,1.47936409]
[1729845626510,2.3729939,67674.0,67673.0,1.47936409]
[1729845626933,2.52349771,67674.0,67673.0,1.47936409]
[1729845629730,2.50968036,67674.0,67673.0,1.47936409]
[1729845629944,2.52349548,67674.0,67673.0,1.47936409]
[1729845630156,2.67931926,67674.0,67673.0,1.47936409]
[1729845630376,2.9435158,67674.0,67673.0,1.47936409]
[1729845630585,3.04761898,67674.0,67673.0,1.47936409]
[1729845633013,3.26845565,67674.0,67673.0,1.4527392]
[1729845633250,3.17967565,67674.0,67673.0,1.4527392]
[1729845633490,2.96188318,67674.0,67673.0,1.4527392]
[1729845635024,2.82921833,67674.0,67673.0,1.27943277]
[1729845635250,2.82921833,67674.0,67673.0,0.62689452]
[1729845635251,2.87394408,67674.0,67673.0,0.62689452]
[1729845635470,2.91799278,67674.0,67673.0,0.59734052]
[1729845635695,2.91799278,67674.0,67673.0,0.53823252]
[1729845635907,2.91799278,67674.0,67673.0,0.47912452]
[1729845636344,2.8138896,67674.0,67673.0,0.47912452]
[1729845636567,2.8138896,67674.0,67673.0,0.42157052]
[1729845636568,2.7251096,67674.0,67673.0,0.42157052]
[1729845636790,2.83121278,67674.0,67673.0,0.42157052]
[1729845637481,2.82921278,67674.0,67673.0,0.42157052]
[1729845637694,2.83121278,67674.0,67673.0,0.42157052]
[1729845637910,2.78516408,67674.0,67673.0,0.42157052]
[1729845640845,2.78518528,67674.0,67673.0,0.42157052]
[1729845641247,2.83124086,67674.0,67673.0,0.42157052]
[1729845641918,2.82924086,67674.0,67673.0,0.42157052]
[1729845642138,2.78387603,67674.0,67673.0,0.42157052]
[1729845642375,2.8299446,67674.0,67673.0,0.42157052]
[1729845643038,2.9187246,67674.0,67673.0,0.42157052]
[1729845643483,2.9207246,67674.0,67673.0,0.42157052]
[1729845644354,2.92073117,67674.0,67673.0,0.42157052]
[1729845644815,2.92073123,67674.0,67673.0,0.42157052]
[1729845645711,2.91873123,67674.0,67673.0,0.42157052]
[1729845645931,3.14032337,67674.0,67673.0,0.42157052]
[1729845646378,3.19946137,67674.0,67673.0,0.42157052]
[1729845646586,3.19946137,67674.0,67673.0,0.37534571]
[1729845646587,3.19746137,67674.0,67673.0,0.37534571]
[1729845646801,3.19793862,67674.0,67673.0,0.37534571]
[1729845648216,3.19993862,67674.0,67673.0,0.37534571]
[1729845650881,3.09583544,67674.0,67673.0,0.37534571]
[1729845651131,3.19993862,67674.0,67673.0,0.37534571]
[1729845651393,3.19967637,67674.0,67673.0,0.37534571]
[1729845653078,3.11089637,67674.0,67673.0,0.37534571]
[1729845653486,3.10889637,67674.0,67673.0,0.37534571]
[1729845654574,3.11089637,67674.0,67673.0,0.15967054]
[1729845654785,0.282618,67668.0,67667.0,0.003816]
[1729845654992,0.86875584,67668.0,67667.0,0.003816]
[1729845655451,0.86876413,67668.0,67667.0,0.003816]
[1729845656115,1.00117619,67668.0,67667.0,0.003816]
[1729845656568,0.86837658,67668.0,67667.0,0.003816]
[1729845657002,0.85452571,67668.0,67667.0,0.003816]
[1729845657216,0.86837684,67668.0,67667.0,0.003816]
[1729845658968,0.85452571,67668.0,67667.0,0.003816]
[1729845659196,0.86837745,67668.0,67667.0,0.003816]
[1729845661298,1.86837745,67668.0,67667.0,0.003816]
[1729845661782,2.05518063,67668.0,67667.0,0.003816]
[1729845662004,2.36630855,67668.0,67667.0,0.003816]
[1729845663078,2.45508855,67668.0,67667.0,0.003816]
[1729845663290,2.45308855,67668.0,67667.0,0.00320379]
[1729845663727,2.45662446,67668.0,67667.0,7.9e-07]
[1729845663941,0.259631,67662.0,67661.0,0.00191]
[1729845664165,0.99172191,67662.0,67661.0,0.00191]
[1729845664649,0.011838,67655.0,67648.0,0.0915]
[1729845664872,0.55110664,67655.0,67648.0,0.0915]
[1729845665083,0.75412003,67655.0,67648.0,0.0915]
[1729845665301,0.90262384,67655.0,67648.0,0.0915]
[1729845665763,0.75212003,67655.0,67648.0,0.0915]
[1729845666430,0.75212003,67655.0,67654.0,0.003678]
[1729845667080,0.75212003,67655.0,67654.0,0.097578]
[1729845667308,0.62501685,67655.0,67654.0,0.175578]
[1729845667722,0.75991277,67655.0,67654.0,0.175578]
[1729845667943,0.91041658,67655.0,67654.0,0.175578]
[1729845668168,0.90841658,67655.0,67654.0,0.175578]
[1729845669247,0.93056955,67655.0,67654.0,0.175578]
[1729845669514,0.92856955,67655.0,67654.0,0.175578]
[1729845671422,0.77806574,67655.0,67654.0,0.175578]
[1729845673235,0.76421209,67655.0,67654.0,0.175578]
[1729845673469,0.64405912,67655.0,67654.0,0.175578]
[1729845673682,0.52501211,67655.0,67654.0,0.175578]
[1729845674132,0.5111632,67655.0,67654.0,0.175578]
[1729845674595,0.5013252,67655.0,67654.0,0.27968118]
[1729845674801,0.39604886,67655.0,67654.0,0.27968118]
[1729845675015,0.30744863,67655.0,67654.0,0.27968118]
[1729845675242,0.15050381,67655.0,67654.0,0.27968118]
[1729845675458,0.21695124,67655.0,67654.0,0.27968118]
[1729845676531,0.15050381,67655.0,67654.0,0.27968118]
[1729845676743,0.21694933,67655.0,67654.0,0.27968118]
[1729845676925,0.36475733,67655.0,67654.0,0.27968118]
[1729845677421,0.36475733,67655.0,67654.0,0.42749118]
[1729845677422,0.06644552,67655.0,67654.0,0.42749118]
[1729845680035,0.10780353,67655.0,67654.0,0.175578]
[1729845680258,0.12163917,67655.0,67654.0,0.175578]
[1729845680693,0.26944717,67655.0,67654.0,0.175578]
[1729845681142,0.12163917,67655.0,67654.0,0.175578]
[1729845681376,0.41995098,67655.0,67654.0,0.175578]
[1729845681585,0.35350546,67655.0,67654.0,0.175578]
[1729845681819,0.31214745,67655.0,67654.0,0.175578]
[1729845683788,0.31214457,67655.0,67654.0,0.175578]
[1729845684226,0.58059462,67655.0,67654.0,0.175578]
[1729845687862,0.46985209,67655.0,67654.0,0.175578]
[1729845689133,0.58057815,67655.0,67654.0,0.175578]
[1729845689350,0.52581518,67655.0,67654.0,0.003678]
[1729845689567,0.55592672,67655.0,67654.0,0.003678]
[1729845690501,0.52581518,67655.0,67654.0,0.003678]
[1729845690717,0.59041589,67655.0,67654.0,0.003678]
[1729845691605,0.44260789,67655.0,67654.0,0.003678]
[1729845691818,0.33188209,67655.0,67654.0,0.20258118]
[1729845692047,0.33111025,67655.0,67654.0,0.098478]
[1729845692268,0.31727749,67655.0,67654.0,0.098478]
[1729845695141,0.46508549,67655.0,67654.0,0.098478]
[1729845695350,0.31727749,67655.0,67654.0,0.098478]
[1729845696466,0.46508549,67655.0,67654.0,0.098478]
[1729845696902,0.46477451,67655.0,67654.0,0.098478]
[1729845698302,0.33080908,67655.0,67654.0,0.098478]
[1729845698991,0.41937781,67655.0,67654.0,0.098478]
[1729845699234,0.56718581,67655.0,67654.0,0.098478]
[1729845699481,0.41937781,67655.0,67654.0,0.098478]
[1729845699722,0.24060857,67655.0,67654.0,0.098478]
[1729845700156,0.226766,67655.0,67654.0,0.098478]
[1729845700355,0.374574,67655.0,67654.0,0.098478]
[1729845701491,0.37457002,67655.0,67654.0,0.098478]
[1729845702141,0.22676202,67655.0,67654.0,0.098478]
[1729845702355,0.34259107,67655.0,67654.0,0.098478]
[1729845704220,0.36473202,67655.0,67654.0,0.098478]
[1729845704490,0.06642021,67656.0,67654.0,0.098478]
[1729845704734,0.04427959,67655.0,67654.0,0.35039118]
[1729845704966,0.08856028,67659.0,67654.0,0.28158118]
[1729845704967,0.04427959,67658.0,67654.0,0.28158118]
[1729845705431,0.04427959,67658.0,67656.0,0.147806]
[1729845705883,0.1947834,67659.0,67656.0,0.147806]
[1729845706120,0.19477778,67659.0,67656.0,0.147806]
[1729845706802,0.19477778,67659.0,67657.0,0.147803]
[1729845709368,0.19477778,67659.0,67658.0,0.147802]
[1729845709607,0.19477778,67659.0,67657.0,0.147803]
[1729845710265,0.04427397,67658.0,67657.0,0.147803]
[1729845710772,0.04427687,67658.0,67657.0,0.147803]
[1729845713276,0.21691911,67659.0,67657.0,0.147803]
[1729845714367,0.21691911,67659.0,67655.0,0.295617]
[1729845714581,0.04429423,67657.0,67655.0,0.295617]
[1729845714818,0.04429423,67657.0,67656.0,0.10410318]
[1729845715954,0.04429423,67657.0,67655.0,0.295617]
[1729845717113,0.04429423,67657.0,67656.0,0.147806]
[1729845719407,0.08026307,67658.0,67657.0,0.147804]
[1729845721996,0.12334675,67658.0,67657.0,0.147804]
[1729845722257,0.08026307,67658.0,67657.0,0.35180718]
[1729845722491,0.0664153,67658.0,67657.0,0.42730718]
[1729845724135,0.0664153,67659.0,67657.0,0.27950318]
[1729845724373,0.04430889,67658.0,67657.0,0.72291518]
[1729845724602,0.04430889,67659.0,67658.0,0.147802]
[1729845724834,0.000824,67661.0,67660.0,0.147959]
[1729845725064,0.000824,67661.0,67660.0,0.53436536]